[Event "FIDE World Cup 2013"]
[Site "TromsÃ¸"]
[Date "2013.08.13"]
[Round "1.3"]
[White "Tomashevsky, Evgeny"]
[Black "Ramirez, Alejandro"]
[Result "1/2-1/2"]
[ECO "D15"]
[WhiteElo "2709"]
[BlackElo "2583"]
[PlyCount "97"]
[EventDate "2013.??.??"]
[EventCountry "NOR"]
[TimeControl "1500+10"]

1. d4 {[%emt 0:00:00]} d5 {[%emt 0:00:00]} 2. c4 {[%emt 0:00:00]} c6 {[%emt 0:
00:00]} 3. Nf3 {[%emt 0:00:00]} Nf6 {[%emt 0:00:00]} 4. Nc3 {[%emt 0:00:00]} a6
{[%emt 0:00:07]} 5. e3 {[%emt 0:00:00]} Bf5 {[%emt 0:01:10]} 6. Qb3 {[%emt 0:
00:20]} b5 {[%emt 0:00:24]} 7. c5 {[%emt 0:00:08]} a5 {[%emt 0:00:15]} 8. Ne5 {
[%emt 0:00:48]} a4 {[%emt 0:00:25]} 9. Qd1 {[%emt 0:00:03]} g6 {[%emt 0:01:21]}
10. g4 {[%emt 0:01:33]} Be6 {[%emt 0:00:08]} 11. h3 {[%emt 0:02:43]} Bg7 {
[%emt 0:00:38]} 12. Bg2 {[%emt 0:00:28]} Qc8 {[%emt 0:01:31]} 13. Bd2 {[%emt 0:
01:21]} h5 {[%emt 0:03:52]} 14. f3 {[%emt 0:00:58]} Nbd7 {[%emt 0:04:01]} 15.
Nd3 {[%emt 0:00:02]} hxg4 {[%emt 0:01:18]} 16. hxg4 {[%emt 0:00:01]} Rxh1+ {
[%emt 0:00:03]} 17. Bxh1 {[%emt 0:00:01]} Qc7 {[%emt 0:00:02]} 18. Qe2 {[%emt
0:00:30]} O-O-O {[%emt 0:00:36]} 19. O-O-O {[%emt 0:00:56]} Rh8 {[%emt 0:00:03]
} 20. Bg2 {[%emt 0:01:14]} Rh2 {[%emt 0:00:49]} 21. Rh1 {[%emt 0:01:26]} Rxh1+
{[%emt 0:01:13]} 22. Bxh1 {[%emt 0:00:01]} Qg3 {[%emt 0:00:13]} 23. Bg2 {[%emt
0:01:01]} Qh2 {[%emt 0:00:43]} 24. Nb4 {[%emt 0:04:38]} Nb8 {[%emt 0:00:10]}
25. Bf1 {[%emt 0:00:51]} Qxe2 {[%emt 0:00:29]} 26. Nxe2 {[%emt 0:00:01]} Bd7 {
[%emt 0:01:10]} 27. Be1 {[%emt 0:00:35]} Ne8 {[%emt 0:00:51]} 28. Bg3 {[%emt 0:
00:15]} Nc7 {[%emt 0:00:34]} 29. Kd2 {[%emt 0:00:42]} Nca6 {[%emt 0:01:28]} 30.
Nd3 {[%emt 0:00:06]} Be8 {[%emt 0:00:19]} 31. g5 {[%emt 0:03:23]} Bd7 {[%emt 0:
00:55]} 32. a3 {[%emt 0:01:07]} Nc7 {[%emt 0:00:50]} 33. Be5 {[%emt 0:02:25]}
Bf8 {[%emt 0:02:27]} 34. Ndf4 {[%emt 0:00:17]} Ne6 {[%emt 0:00:50]} 35. Nxe6 {
[%emt 0:00:26]} Bxe6 {[%emt 0:00:02]} 36. e4 {[%emt 0:00:40]} dxe4 {[%emt 0:00:
49]} 37. fxe4 {[%emt 0:00:01]} Nd7 {[%emt 0:00:06]} 38. Bg3 {[%emt 0:00:03]}
Bc4 {[%emt 0:00:06]} 39. Bh3 {[%emt 0:00:10]} Kd8 {[%emt 0:00:46]} 40. Ng1 {
[%emt 0:01:44]} Bg7 {[%emt 0:00:25]} 41. e5 {[%emt 0:00:01]} e6 {[%emt 0:00:10]
} 42. Nf3 {[%emt 0:00:43]} Bf8 {[%emt 0:00:02]} 43. Bf4 {[%emt 0:00:05]} Be7 {
[%emt 0:00:06]} 44. Nh2 {[%emt 0:00:08]} Ke8 {[%emt 0:00:16]} 45. Ng4 {[%emt 0:
00:02]} Bd8 {[%emt 0:00:04]} 46. Nf6+ {[%emt 0:00:04]} Nxf6 {[%emt 0:00:02]}
47. exf6 {[%emt 0:00:02]} Ba5+ {[%emt 0:00:07]} 48. Kc2 {[%emt 0:00:15]} Kd7 {
[%emt 0:00:13]} 49. Bg4 {[%emt 0:00:28]} 1/2-1/2

[Event "FIDE World Cup 2013"]
[Site "TromsÃ¸"]
[Date "2013.08.13"]
[Round "1.3"]
[White "Wan, Yunguo"]
[Black "Adams, Michael"]
[Result "1/2-1/2"]
[ECO "C45"]
[WhiteElo "2509"]
[BlackElo "2740"]
[PlyCount "95"]
[EventDate "2013.??.??"]
[EventCountry "NOR"]
[TimeControl "1500+10"]

1. e4 {[%emt 0:00:00]} e5 {[%emt 0:00:00]} 2. Nf3 {[%emt 0:00:00]} Nc6 {[%emt
0:00:00]} 3. d4 {[%emt 0:00:00]} exd4 {[%emt 0:00:00]} 4. Nxd4 {[%emt 0:00:02]}
Nf6 {[%emt 0:00:00]} 5. Nxc6 {[%emt 0:00:05]} bxc6 {[%emt 0:00:00]} 6. e5 {
[%emt 0:00:05]} Qe7 {[%emt 0:00:00]} 7. Qe2 {[%emt 0:00:04]} Nd5 {[%emt 0:00:
02]} 8. c4 {[%emt 0:00:04]} Nb6 {[%emt 0:00:01]} 9. Nc3 {[%emt 0:00:04]} Qe6 {
[%emt 0:00:02]} 10. Qe4 {[%emt 0:00:35]} g6 {[%emt 0:00:11]} 11. f4 {[%emt 0:
00:17]} Bb4 {[%emt 0:00:24]} 12. Bd2 {[%emt 0:01:08]} O-O {[%emt 0:00:18]} 13.
O-O-O {[%emt 0:02:10]} Rb8 {[%emt 0:01:08]} 14. b3 {[%emt 0:01:42]} d5 {[%emt
0:03:32]} 15. cxd5 {[%emt 0:00:23]} Ba3+ {[%emt 0:01:45]} 16. Kb1 {[%emt 0:03:
38]} cxd5 {[%emt 0:00:11]} 17. Qc2 {[%emt 0:00:08]} Bd7 {[%emt 0:01:05]} 18.
Nb5 {[%emt 0:01:27]} Bxb5 {[%emt 0:01:08]} 19. Bxb5 {[%emt 0:00:02]} c5 {[%emt
0:02:47]} 20. f5 {[%emt 0:01:25]} Qxe5 {[%emt 0:00:48]} 21. Rhf1 {[%emt 0:00:
10]} c4 {[%emt 0:04:32]} 22. Bf4 {[%emt 0:01:37]} Qe7 {[%emt 0:00:06]} 23. Bxb8
{[%emt 0:01:10]} Rxb8 {[%emt 0:00:02]} 24. fxg6 {[%emt 0:00:13]} hxg6 {[%emt 0:
00:30]} 25. Rde1 {[%emt 0:00:56]} Qf8 {[%emt 0:01:26]} 26. Re6 {[%emt 0:00:44]}
Qg7 {[%emt 0:00:52]} 27. Re8+ {[%emt 0:00:29]} Rxe8 {[%emt 0:00:03]} 28. Bxe8 {
[%emt 0:00:03]} f5 {[%emt 0:00:45]} 29. g4 {[%emt 0:00:35]} d4 {[%emt 0:01:02]}
30. bxc4 {[%emt 0:00:16]} Qb7 {[%emt 0:01:19]} 31. Qb3 {[%emt 0:03:08]} Qe4+ {
[%emt 0:00:19]} 32. Ka1 {[%emt 0:00:03]} Bc5 {[%emt 0:01:54]} 33. Bxg6 {[%emt
0:00:40]} Qe2 {[%emt 0:01:43]} 34. Qf3 {[%emt 0:01:14]} d3 {[%emt 0:00:19]} 35.
Qxe2 {[%emt 0:00:33]} dxe2 {[%emt 0:00:01]} 36. Re1 {[%emt 0:00:03]} Na4 {
[%emt 0:00:26]} 37. Rxe2 {[%emt 0:05:35]} Bd4+ {[%emt 0:00:01]} 38. Kb1 {[%emt
0:00:02]} Nc3+ {[%emt 0:00:01]} 39. Kc2 {[%emt 0:00:01]} Nxe2 {[%emt 0:00:02]}
40. Kd3 {[%emt 0:00:01]} fxg4 {[%emt 0:00:15]} 41. Kxe2 {[%emt 0:00:07]} Bg1 {
[%emt 0:00:05]} 42. Bf5 {[%emt 0:00:06]} Kf8 {[%emt 0:00:22]} 43. Bxg4 {[%emt
0:00:06]} Bxh2 {[%emt 0:00:01]} 44. c5 {[%emt 0:00:06]} Ke7 {[%emt 0:00:06]}
45. Kd3 {[%emt 0:00:03]} Kd8 {[%emt 0:00:04]} 46. Kc4 {[%emt 0:00:07]} Kc7 {
[%emt 0:00:02]} 47. Kb5 {[%emt 0:00:05]} Bg1 {[%emt 0:00:05]} 48. Bf3 1/2-1/2

[Event "FIDE World Cup 2013"]
[Site "TromsÃ¸"]
[Date "2013.08.13"]
[Round "1.3"]
[White "Yu, Yangyi"]
[Black "Beliavsky, Alexander G"]
[Result "1-0"]
[ECO "C45"]
[WhiteElo "2657"]
[BlackElo "2651"]
[PlyCount "89"]
[EventDate "2013.??.??"]
[EventCountry "NOR"]
[TimeControl "1500+10"]

1. e4 {[%emt 0:00:00]} e5 {[%emt 0:00:00]} 2. Nf3 {[%emt 0:00:02]} Nc6 {[%emt
0:00:00]} 3. d4 {[%emt 0:00:05]} exd4 {[%emt 0:00:04]} 4. Nxd4 {[%emt 0:00:02]}
Bc5 {[%emt 0:00:16]} 5. Nb3 {[%emt 0:00:12]} Bb6 {[%emt 0:00:15]} 6. Nc3 {
[%emt 0:00:02]} Nf6 {[%emt 0:00:49]} 7. Bg5 {[%emt 0:00:37]} d6 {[%emt 0:00:45]
} 8. Qd2 {[%emt 0:01:01]} h6 {[%emt 0:02:15]} 9. Be3 {[%emt 0:00:02]} Be6 {
[%emt 0:02:13]} 10. O-O-O {[%emt 0:00:09]} Qd7 {[%emt 0:00:25]} 11. f3 {[%emt
0:00:23]} O-O-O {[%emt 0:00:18]} 12. Bb5 {[%emt 0:00:21]} a6 {[%emt 0:02:21]}
13. Ba4 {[%emt 0:03:19]} Bxb3 {[%emt 0:02:44]} 14. Bxb3 {[%emt 0:00:43]} Bxe3 {
[%emt 0:00:08]} 15. Qxe3 {[%emt 0:00:01]} Rhe8 {[%emt 0:00:17]} 16. Rd2 {[%emt
0:01:12]} Kb8 {[%emt 0:00:20]} 17. Ba4 {[%emt 0:00:02]} g5 {[%emt 0:01:56]} 18.
h4 {[%emt 0:02:11]} Re5 {[%emt 0:00:03]} 19. hxg5 {[%emt 0:00:01]} hxg5 {[%emt
0:00:00]} 20. Rh6 {[%emt 0:00:04]} Ng8 {[%emt 0:01:48]} 21. Rh7 {[%emt 0:01:04]
} Nf6 {[%emt 0:00:01]} 22. Rh6 {[%emt 0:02:22]} Ng8 {[%emt 0:00:01]} 23. Rh5 {
[%emt 0:00:05]} f6 {[%emt 0:00:08]} 24. Nd5 {[%emt 0:00:23]} b5 {[%emt 0:04:50]
} 25. Bb3 {[%emt 0:00:03]} Na5 {[%emt 0:00:04]} 26. g4 {[%emt 0:00:49]} Nxb3+ {
[%emt 0:00:05]} 27. Qxb3 {[%emt 0:01:11]} c6 {[%emt 0:01:35]} 28. Nb4 {[%emt 0:
00:10]} a5 {[%emt 0:01:14]} 29. Nd3 {[%emt 0:00:08]} Ree8 {[%emt 0:00:36]} 30.
a4 {[%emt 0:00:03]} Qb7 {[%emt 0:00:51]} 31. Rdh2 {[%emt 0:00:06]} bxa4 {[%emt
0:01:32]} 32. Qxa4 {[%emt 0:00:07]} Qb6 {[%emt 0:00:02]} 33. Kb1 {[%emt 0:00:
25]} d5 {[%emt 0:00:14]} 34. Re2 {[%emt 0:03:20]} Qb5 {[%emt 0:00:37]} 35.
Qxb5+ {[%emt 0:00:50]} cxb5 {[%emt 0:00:01]} 36. e5 {[%emt 0:00:01]} Re7 {
[%emt 0:00:43]} 37. f4 {[%emt 0:04:20]} gxf4 {[%emt 0:00:11]} 38. Nxf4 {[%emt
0:00:01]} Kb7 {[%emt 0:01:06]} 39. e6 {[%emt 0:01:24]} Kc6 {[%emt 0:00:01]} 40.
Rd2 {[%emt 0:00:01]} d4 {[%emt 0:00:10]} 41. c3 {[%emt 0:00:01]} Rg7 {[%emt 0:
00:09]} 42. cxd4 {[%emt 0:00:25]} Rxg4 {[%emt 0:00:01]} 43. Rc2+ {[%emt 0:00:
02]} Kb7 {[%emt 0:00:24]} 44. Rh7+ {[%emt 0:00:19]} Kb6 {[%emt 0:00:18]} 45.
Rd7 {[%emt 0:00:21]} 1-0

[Event "FIDE World Cup 2013"]
[Site "TromsÃ¸"]
[Date "2013.08.13"]
[Round "1.3"]
[White "Zvjaginsev, Vadim"]
[Black "Swiercz, Dariusz"]
[Result "1-0"]
[ECO "A22"]
[WhiteElo "2659"]
[BlackElo "2650"]
[PlyCount "105"]
[EventDate "2013.??.??"]
[EventCountry "NOR"]
[TimeControl "1500+10"]

1. c4 {[%emt 0:00:00]} Nf6 {[%emt 0:00:00]} 2. Nc3 {[%emt 0:00:00]} e5 {[%emt
0:00:00]} 3. g3 {[%emt 0:00:15]} c6 {[%emt 0:00:00]} 4. Nf3 {[%emt 0:00:19]} e4
{[%emt 0:00:01]} 5. Nd4 {[%emt 0:00:02]} Qb6 {[%emt 0:00:02]} 6. e3 {[%emt 0:
00:05]} d5 {[%emt 0:02:37]} 7. Qb3 {[%emt 0:02:10]} Bc5 {[%emt 0:07:33]} 8. Na4
{[%emt 0:00:52]} Qxb3 {[%emt 0:00:03]} 9. axb3 {[%emt 0:00:06]} Nbd7 {[%emt 0:
00:44]} 10. Nxc5 {[%emt 0:01:23]} Nxc5 {[%emt 0:00:02]} 11. b4 {[%emt 0:00:17]}
Ne6 {[%emt 0:00:36]} 12. Nxe6 {[%emt 0:01:14]} Bxe6 {[%emt 0:00:02]} 13. b3 {
[%emt 0:00:07]} Nd7 {[%emt 0:02:43]} 14. Bb2 {[%emt 0:00:03]} f6 {[%emt 0:00:
01]} 15. d3 {[%emt 0:03:00]} exd3 {[%emt 0:00:32]} 16. Bxd3 {[%emt 0:00:04]}
Ne5 {[%emt 0:00:17]} 17. Be2 {[%emt 0:00:19]} dxc4 {[%emt 0:02:24]} 18. Bxe5 {
[%emt 0:00:07]} fxe5 {[%emt 0:00:01]} 19. bxc4 {[%emt 0:00:29]} Ke7 {[%emt 0:
00:03]} 20. Ra5 {[%emt 0:01:59]} Kf6 {[%emt 0:00:03]} 21. f4 {[%emt 0:02:07]}
exf4 {[%emt 0:00:08]} 22. O-O {[%emt 0:00:33]} f3 {[%emt 0:03:43]} 23. Rxf3+ {
[%emt 0:00:55]} Ke7 {[%emt 0:00:01]} 24. Rf4 {[%emt 0:00:54]} Rhf8 {[%emt 0:01:
10]} 25. Rxf8 {[%emt 0:03:34]} Kxf8 {[%emt 0:00:01]} 26. b5 {[%emt 0:00:18]}
Ke7 {[%emt 0:04:25]} 27. bxc6 {[%emt 0:00:50]} bxc6 {[%emt 0:00:06]} 28. Kf2 {
[%emt 0:01:49]} Kd6 {[%emt 0:00:02]} 29. e4 {[%emt 0:00:09]} Kc7 {[%emt 0:01:
27]} 30. c5 {[%emt 0:00:19]} Kb7 {[%emt 0:00:12]} 31. Ba6+ {[%emt 0:01:01]} Kc7
{[%emt 0:00:02]} 32. Bd3 {[%emt 0:00:30]} Kb7 {[%emt 0:00:34]} 33. Ba6+ {[%emt
0:01:03]} Kc7 {[%emt 0:00:04]} 34. Be2 {[%emt 0:00:08]} Kb7 {[%emt 0:00:04]}
35. Ke3 {[%emt 0:00:09]} Rd8 {[%emt 0:00:17]} 36. h4 {[%emt 0:00:17]} h6 {
[%emt 0:00:08]} 37. Ra1 {[%emt 0:00:54]} Rd7 {[%emt 0:00:26]} 38. Ba6+ {[%emt
0:00:33]} Kc7 {[%emt 0:00:13]} 39. Rb1 {[%emt 0:00:08]} Kd8 {[%emt 0:00:31]}
40. Rb8+ {[%emt 0:00:27]} Ke7 {[%emt 0:00:01]} 41. Rc8 {[%emt 0:00:30]} Rd1 {
[%emt 0:00:16]} 42. Rxc6 {[%emt 0:00:30]} Ra1 {[%emt 0:00:12]} 43. Bc8 {[%emt
0:00:57]} Ra3+ {[%emt 0:00:11]} 44. Kf4 {[%emt 0:00:09]} Bf7 {[%emt 0:00:10]}
45. Rc7+ {[%emt 0:00:14]} Kf8 {[%emt 0:00:01]} 46. g4 {[%emt 0:00:08]} Rc3 {
[%emt 0:00:15]} 47. Ke5 {[%emt 0:00:09]} a5 {[%emt 0:00:04]} 48. Be6 {[%emt 0:
00:11]} Be8 {[%emt 0:00:11]} 49. Kd6 {[%emt 0:00:16]} a4 {[%emt 0:00:10]} 50.
Ra7 {[%emt 0:00:04]} a3 {[%emt 0:00:10]} 51. Bd5 {[%emt 0:00:07]} g5 {[%emt 0:
00:12]} 52. hxg5 {[%emt 0:00:05]} hxg5 {[%emt 0:00:01]} 53. c6 {[%emt 0:00:06]}
1-0

[Event "FIDE World Cup 2013"]
[Site "TromsÃ¸"]
[Date "2013.08.13"]
[Round "1.4"]
[White "Alekseev, Evgeny"]
[Black "Adhiban, B."]
[Result "1-0"]
[ECO "C72"]
[WhiteElo "2714"]
[BlackElo "2567"]
[PlyCount "101"]
[EventDate "2013.??.??"]
[EventCountry "NOR"]
[TimeControl "1500+10"]

1. e4 {[%emt 0:00:00]} e5 {[%emt 0:00:00]} 2. Nf3 {[%emt 0:00:00]} Nc6 {[%emt
0:00:00]} 3. Bb5 {[%emt 0:00:00]} a6 {[%emt 0:00:00]} 4. Ba4 {[%emt 0:00:04]}
d6 {[%emt 0:00:00]} 5. O-O {[%emt 0:00:34]} Bd7 {[%emt 0:00:05]} 6. c3 {[%emt
0:00:11]} g6 {[%emt 0:00:03]} 7. d4 {[%emt 0:00:12]} Bg7 {[%emt 0:00:02]} 8.
Be3 {[%emt 0:00:32]} Nf6 {[%emt 0:00:52]} 9. Nbd2 {[%emt 0:00:03]} b5 {[%emt 0:
00:56]} 10. Bc2 {[%emt 0:00:36]} O-O {[%emt 0:00:31]} 11. h3 {[%emt 0:00:47]}
Re8 {[%emt 0:01:26]} 12. Re1 {[%emt 0:00:08]} Qc8 {[%emt 0:00:48]} 13. Rc1 {
[%emt 0:01:27]} Qb7 {[%emt 0:01:16]} 14. Bb1 {[%emt 0:00:29]} Rad8 {[%emt 0:00:
33]} 15. Bg5 {[%emt 0:03:33]} h6 {[%emt 0:00:06]} 16. Bh4 {[%emt 0:00:04]} Qb6
{[%emt 0:01:24]} 17. Nf1 {[%emt 0:00:55]} Ne7 {[%emt 0:05:34]} 18. Qc2 {[%emt
0:02:20]} Nh5 {[%emt 0:00:15]} 19. Rcd1 {[%emt 0:01:42]} Nf4 {[%emt 0:00:14]}
20. Bg3 {[%emt 0:01:11]} c5 {[%emt 0:02:29]} 21. Qd2 {[%emt 0:00:38]} cxd4 {
[%emt 0:02:16]} 22. cxd4 {[%emt 0:00:11]} Nh5 {[%emt 0:00:13]} 23. Bh4 {[%emt
0:00:22]} Be6 {[%emt 0:00:54]} 24. Ng3 {[%emt 0:02:40]} Nxg3 {[%emt 0:00:54]}
25. Bxg3 {[%emt 0:00:01]} Bc8 {[%emt 0:02:42]} 26. Bh4 {[%emt 0:02:52]} exd4 {
[%emt 0:01:22]} 27. Nh2 {[%emt 0:00:37]} Qc5 {[%emt 0:03:13]} 28. f4 {[%emt 0:
00:33]} Qh5 {[%emt 0:01:05]} 29. Bf2 {[%emt 0:02:17]} Nc6 {[%emt 0:00:01]} 30.
Rc1 Bb7 31. Bd3 {[%emt 0:00:33]} b4 {[%emt 0:00:03]} 32. e5 {[%emt 0:01:27]}
Nxe5 {[%emt 0:00:18]} 33. fxe5 {[%emt 0:00:05]} Bxe5 {[%emt 0:00:10]} 34. Be2 {
[%emt 0:01:07]} Qg5 {[%emt 0:00:03]} 35. Qxg5 {[%emt 0:00:12]} hxg5 {[%emt 0:
00:00]} 36. Nf3 {[%emt 0:00:57]} Bf4 {[%emt 0:00:07]} 37. Rcd1 {[%emt 0:00:23]}
Rc8 {[%emt 0:00:01]} 38. Nxd4 {[%emt 0:00:11]} a5 {[%emt 0:00:15]} 39. b3 {
[%emt 0:00:13]} Be4 {[%emt 0:00:13]} 40. Ba6 {[%emt 0:00:26]} Rc3 {[%emt 0:00:
02]} 41. Bb7 {[%emt 0:00:29]} f5 {[%emt 0:00:11]} 42. Nb5 {[%emt 0:00:07]} Rc2
{[%emt 0:00:56]} 43. Nxd6 {[%emt 0:00:07]} Bxd6 {[%emt 0:00:12]} 44. Rxd6 {
[%emt 0:00:01]} Kh7 {[%emt 0:00:11]} 45. Rd7+ {[%emt 0:00:16]} Kh6 {[%emt 0:00:
01]} 46. Bxe4 {[%emt 0:00:30]} fxe4 {[%emt 0:00:12]} 47. Be3 {[%emt 0:00:17]}
Re5 {[%emt 0:00:21]} 48. g4 {[%emt 0:00:17]} Rxa2 {[%emt 0:00:15]} 49. h4 {
[%emt 0:00:02]} Rb2 {[%emt 0:00:11]} 50. hxg5+ {[%emt 0:00:04]} Rxg5 {[%emt 0:
00:02]} 51. Rd5 {[%emt 0:00:04]} 1-0

[Event "FIDE World Cup 2013"]
[Site "TromsÃ¸"]
[Date "2013.08.13"]
[Round "1.4"]
[White "Andreikin, Dmitry"]
[Black "Darini, Pouria"]
[Result "1/2-1/2"]
[ECO "A05"]
[WhiteElo "2727"]
[BlackElo "2548"]
[PlyCount "76"]
[EventDate "2013.??.??"]
[EventCountry "NOR"]
[TimeControl "1500+10"]

1. Nf3 {[%emt 0:00:00]} Nf6 {[%emt 0:00:00]} 2. c4 {[%emt 0:00:00]} g6 {[%emt
0:00:00]} 3. Nc3 {[%emt 0:00:00]} Bg7 {[%emt 0:00:00]} 4. e4 {[%emt 0:00:01]}
d6 {[%emt 0:00:00]} 5. d4 {[%emt 0:00:01]} O-O {[%emt 0:00:00]} 6. h3 {[%emt 0:
00:04]} Na6 {[%emt 0:00:10]} 7. Be3 {[%emt 0:00:58]} e5 {[%emt 0:00:49]} 8.
dxe5 {[%emt 0:00:19]} dxe5 {[%emt 0:00:01]} 9. Qxd8 {[%emt 0:00:03]} Rxd8 {
[%emt 0:00:02]} 10. a3 {[%emt 0:00:06]} c6 {[%emt 0:00:40]} 11. Rd1 {[%emt 0:
00:44]} Re8 {[%emt 0:00:45]} 12. Be2 {[%emt 0:01:08]} Nc7 {[%emt 0:00:28]} 13.
O-O {[%emt 0:00:06]} Nh5 {[%emt 0:00:06]} 14. Rfe1 {[%emt 0:00:24]} Nf4 {[%emt
0:01:09]} 15. Bf1 {[%emt 0:00:02]} h6 {[%emt 0:00:37]} 16. c5 {[%emt 0:00:33]}
Be6 {[%emt 0:01:15]} 17. Nd2 {[%emt 0:01:33]} Red8 {[%emt 0:03:35]} 18. Nc4 {
[%emt 0:00:11]} Bxc4 {[%emt 0:00:51]} 19. Bxc4 {[%emt 0:00:03]} Nce6 {[%emt 0:
00:01]} 20. Rxd8+ {[%emt 0:03:02]} Rxd8 {[%emt 0:00:02]} 21. Rd1 {[%emt 0:00:
04]} Nd4 {[%emt 0:01:04]} 22. Kf1 {[%emt 0:00:07]} Re8 {[%emt 0:03:13]} 23. Ne2
{[%emt 0:02:27]} Nfxe2 {[%emt 0:01:59]} 24. Bxe2 {[%emt 0:00:02]} a5 {[%emt 0:
00:36]} 25. Bc4 {[%emt 0:01:15]} a4 {[%emt 0:02:16]} 26. Rd3 {[%emt 0:03:04]}
g5 {[%emt 0:01:00]} 27. g3 {[%emt 0:01:41]} Ra8 {[%emt 0:02:00]} 28. f4 {[%emt
0:04:09]} Nc2 {[%emt 0:00:08]} 29. fxg5 {[%emt 0:00:13]} Nxe3+ {[%emt 0:01:37]}
30. Rxe3 {[%emt 0:00:02]} Ra5 {[%emt 0:01:13]} 31. g6 {[%emt 0:00:41]} Rxc5 {
[%emt 0:02:19]} 32. Bxf7+ {[%emt 0:00:26]} Kf8 {[%emt 0:00:01]} 33. b3 {[%emt
0:01:18]} Rc1+ {[%emt 0:00:25]} 34. Re1 {[%emt 0:00:23]} Rxe1+ {[%emt 0:00:57]}
35. Kxe1 {[%emt 0:00:02]} axb3 {[%emt 0:00:02]} 36. Kd2 {[%emt 0:00:22]} Ke7 {
[%emt 0:00:19]} 37. Kc3 {[%emt 0:00:11]} Kd6 {[%emt 0:00:25]} 38. Bxb3 {[%emt
0:00:21]} Kc5 {[%emt 0:00:06]} 1/2-1/2

[Event "FIDE World Cup 2013"]
[Site "TromsÃ¸"]
[Date "2013.08.13"]
[Round "1.4"]
[White "Azarov, Sergei"]
[Black "Dreev, Aleksey"]
[Result "1/2-1/2"]
[ECO "B12"]
[WhiteElo "2636"]
[BlackElo "2668"]
[PlyCount "88"]
[EventDate "2013.??.??"]
[EventCountry "NOR"]
[TimeControl "1500+10"]

1. e4 {[%emt 0:00:00]} c6 {[%emt 0:00:00]} 2. d4 {[%emt 0:00:00]} d5 {[%emt 0:
00:00]} 3. f3 {[%emt 0:00:00]} e6 {[%emt 0:00:00]} 4. Nc3 {[%emt 0:00:00]} Bb4
{[%emt 0:00:00]} 5. a3 {[%emt 0:00:04]} Bxc3+ {[%emt 0:00:00]} 6. bxc3 {[%emt
0:00:01]} dxe4 {[%emt 0:00:01]} 7. Nh3 {[%emt 0:00:06]} Nf6 {[%emt 0:02:12]} 8.
fxe4 {[%emt 0:00:32]} e5 {[%emt 0:01:07]} 9. Nf2 {[%emt 0:00:32]} O-O {[%emt 0:
00:51]} 10. Be2 {[%emt 0:00:03]} Re8 {[%emt 0:04:40]} 11. O-O {[%emt 0:00:03]}
Be6 {[%emt 0:02:05]} 12. dxe5 {[%emt 0:04:45]} Qxd1 {[%emt 0:00:57]} 13. Rxd1 {
[%emt 0:00:03]} Nfd7 {[%emt 0:00:02]} 14. Bf4 {[%emt 0:00:49]} Nf8 {[%emt 0:02:
05]} 15. Rab1 {[%emt 0:01:06]} b6 {[%emt 0:01:42]} 16. Rd6 {[%emt 0:01:30]} Ng6
{[%emt 0:00:27]} 17. Bg3 {[%emt 0:00:46]} Nd7 {[%emt 0:00:05]} 18. Nd3 {[%emt
0:00:54]} c5 {[%emt 0:00:06]} 19. Rd1 {[%emt 0:01:36]} c4 {[%emt 0:02:18]} 20.
Nf4 {[%emt 0:00:01]} Nxf4 {[%emt 0:00:22]} 21. Bxf4 {[%emt 0:00:02]} Nc5 {
[%emt 0:00:04]} 22. R1d4 {[%emt 0:00:58]} Rac8 {[%emt 0:00:04]} 23. Bxc4 {
[%emt 0:02:08]} Bxc4 {[%emt 0:00:03]} 24. Rxc4 {[%emt 0:00:01]} Ne6 {[%emt 0:
00:05]} 25. Rxc8 {[%emt 0:00:42]} Rxc8 {[%emt 0:00:01]} 26. Bd2 {[%emt 0:00:05]
} Rc4 {[%emt 0:01:00]} 27. Rd7 {[%emt 0:00:57]} Ra4 {[%emt 0:00:09]} 28. Bc1 {
[%emt 0:00:41]} Rxe4 {[%emt 0:00:39]} 29. Kf2 {[%emt 0:00:01]} Ra4 {[%emt 0:00:
12]} 30. Re7 {[%emt 0:01:31]} h5 {[%emt 0:01:18]} 31. Ke2 {[%emt 0:00:58]} g5 {
[%emt 0:00:53]} 32. h3 {[%emt 0:02:24]} Kg7 {[%emt 0:00:57]} 33. Kd3 {[%emt 0:
00:21]} b5 {[%emt 0:01:54]} 34. Ke2 {[%emt 0:01:42]} Kg6 {[%emt 0:00:21]} 35.
Rb7 {[%emt 0:00:35]} a6 {[%emt 0:00:13]} 36. Ra7 {[%emt 0:00:05]} h4 {[%emt 0:
00:19]} 37. Kf3 {[%emt 0:00:50]} Rc4 {[%emt 0:00:39]} 38. Bd2 {[%emt 0:00:34]}
Ra4 {[%emt 0:00:02]} 39. Bc1 {[%emt 0:00:45]} Rc4 {[%emt 0:00:02]} 40. Bb2 {
[%emt 0:00:04]} Rf4+ {[%emt 0:00:12]} 41. Ke3 {[%emt 0:00:05]} Ra4 {[%emt 0:00:
31]} 42. Kf3 {[%emt 0:00:51]} Rf4+ {[%emt 0:00:12]} 43. Ke3 {[%emt 0:00:01]}
Ra4 {[%emt 0:00:01]} 44. Kf3 {[%emt 0:00:02]} Rf4+ {[%emt 0:00:02]} 1/2-1/2

[Event "FIDE World Cup 2013"]
[Site "TromsÃ¸"]
[Date "2013.08.13"]
[Round "1.4"]
[White "Beliavsky, Alexander G"]
[Black "Yu, Yangyi"]
[Result "0-1"]
[ECO "D31"]
[WhiteElo "2651"]
[BlackElo "2657"]
[PlyCount "38"]
[EventDate "2013.??.??"]
[EventCountry "NOR"]
[TimeControl "1500+10"]

1. d4 d5 {[%emt 0:00:00]} 2. c4 {[%emt 0:00:00]} e6 {[%emt 0:00:01]} 3. Nc3 {
[%emt 0:00:02]} Bb4 {[%emt 0:00:01]} 4. a3 {[%emt 0:00:06]} Bxc3+ {[%emt 0:00:
05]} 5. bxc3 {[%emt 0:00:01]} c5 {[%emt 0:00:18]} 6. e3 {[%emt 0:00:24]} Ne7 {
[%emt 0:00:27]} 7. Bd3 {[%emt 0:00:47]} dxc4 {[%emt 0:00:45]} 8. Bxc4 {[%emt 0:
00:03]} Qc7 {[%emt 0:00:01]} 9. Qe2 {[%emt 0:01:04]} O-O {[%emt 0:00:15]} 10.
Bb2 {[%emt 0:00:28]} Nbc6 {[%emt 0:01:42]} 11. Nf3 {[%emt 0:00:15]} e5 {[%emt
0:00:02]} 12. Rd1 {[%emt 0:01:45]} Bg4 {[%emt 0:05:07]} 13. d5 {[%emt 0:00:54]}
e4 {[%emt 0:00:01]} 14. dxc6 {[%emt 0:00:51]} exf3 {[%emt 0:00:49]} 15. gxf3 {
[%emt 0:02:34]} Qxc6 {[%emt 0:00:02]} 16. e4 {[%emt 0:00:20]} Be6 {[%emt 0:00:
09]} 17. Bb5 {[%emt 0:00:55]} Qc7 {[%emt 0:01:28]} 18. c4 {[%emt 0:00:12]} a6 {
[%emt 0:00:07]} 19. Ba4 {[%emt 0:00:02]} Qa5+ {[%emt 0:00:09]} 0-1